bitfinex-derivatives/quotes_BTCF0:USTF0_20251204
["timestamp","ask_amount","ask_price","bid_price","bid_amount"]
[1764814910186,0.27713,94022.0,94021.0,1.51719967]
[1764814910784,0.27713,94022.0,94021.0,0.01719967]
[1764814910985,0.2877642,94029.0,94021.0,0.01719967]
[1764814911379,0.13837,94022.0,94021.0,1.51719967]
[1764814911691,0.27713,94022.0,94021.0,1.51719967]
[1764814911887,0.27713,94022.0,94021.0,0.01719967]
[1764814915698,0.3664556,94016.0,94015.0,0.0001222]
[1764814916089,0.3664556,94016.0,94015.0,0.0170046]
[1764814916283,0.3664556,94016.0,94015.0,0.0001222]
[1764814919394,0.0893247,94024.0,94015.0,0.1320822]
[1764814919700,0.13837,94020.0,94019.0,0.0106352]
[1764814919902,0.27713,94020.0,94019.0,0.0106352]
[1764814920299,0.27713,94020.0,94019.0,0.2836452]
[1764814922101,0.13837,94026.0,94025.0,0.2836445]
[1764814922300,0.27713,94022.0,94021.0,0.0106349]
[1764814922995,0.07869,94032.0,94015.0,0.0001222]
[1764814922996,0.0106356,94016.0,94015.0,0.0001222]
[1764814923204,0.2877656,94016.0,94015.0,0.0001222]
[1764814923593,0.27713,94016.0,94015.0,0.0001222]
[1764814923794,0.27713,94016.0,94015.0,0.1411722]
[1764814924287,0.25451,94013.0,94012.0,0.05648146]
[1764814924500,0.2651489,93987.0,93986.0,0.07534713]
[1764814924699,0.2651511,93967.0,93956.0,0.09435833]
[1764814924892,0.0106425,93955.0,93951.0,0.0106428]
[1764814925094,0.0106425,93955.0,93950.0,0.17500823]
[1764814925095,0.12843,93951.0,93950.0,0.17500823]
[1764814925292,0.25461598,93951.0,93950.0,0.18565133]
[1764814925490,0.25461598,93951.0,93950.0,0.01727105]
[1764814925696,0.25451,93942.0,93941.0,0.00015958]
[1764814925996,0.25451,93931.0,93930.0,0.17500823]
[1764814926198,0.25451,93927.0,93926.0,0.00026617]
[1764814926595,0.25451,93923.0,93911.0,0.0106474]
[1764814926795,0.25451,93923.0,93922.0,0.01717844]
[1764814927299,0.25451,93923.0,93922.0,0.00233055]
[1764814927601,0.2651571,93914.0,93913.0,0.00015967]
[1764814927992,0.25451,93887.0,93870.0,0.07596]
[1764814928193,0.25462706,93887.0,93877.0,0.18565953]
[1764814928391,0.25462706,93887.0,93882.0,0.0106508]
[1764814928902,0.25451,93869.0,93868.0,0.0106523]
[1764814929103,0.12843,93869.0,93868.0,0.02730146]
[1764814929301,0.08202,93885.0,93868.0,0.0106523]
[1764814929606,0.0106506,93884.0,93871.0,0.010652]
[1764814929992,0.00011706,93887.0,93870.0,0.35001646]
[1764814930195,0.25451,93878.0,93859.0,0.00015977]
[1764814930398,0.12843,93871.0,93868.0,0.17500823]
[1764814930604,0.25451,93870.0,93869.0,0.0106522]
[1764814930806,0.25451,93865.0,93861.0,0.17500823]
[1764814931102,0.00015977,93879.0,93808.0,0.09435833]
[1764814931103,0.25451,93831.0,93808.0,0.09435833]
[1764814931307,0.08202,93840.0,93808.0,0.01720165]
[1764814931308,0.0106572,93826.0,93808.0,0.01720165]
[1764814931507,0.0106572,93826.0,93806.0,0.00026651]
[1764814931508,0.0106572,93826.0,93809.0,1.5]
[1764814931914,0.0106572,93826.0,93810.0,0.17500823]
[1764814932209,8.06e-05,93825.0,93810.0,0.35001646]
[1764814932400,8.06e-05,93825.0,93809.0,1.5001072]
[1764814932601,8.06e-05,93825.0,93810.0,0.17500823]
[1764814933706,0.0106574,93824.0,93810.0,0.17500823]
[1764814933905,0.010658,93819.0,93809.0,1.5001072]
[1764814934708,0.0106586,93814.0,93809.0,0.0001072]
[1764814934899,0.25451,93810.0,93809.0,0.0001072]
[1764814935808,0.12843,93810.0,93809.0,0.0001072]
[1764814936204,0.0106577,93822.0,93809.0,0.0001072]
[1764814936408,0.08202,93823.0,93809.0,0.0001072]
[1764814936708,0.25451,93810.0,93809.0,0.0001072]
[1764814937111,0.0106577,93822.0,93809.0,0.1414872]
[1764814937317,0.08202,93823.0,93810.0,0.17500823]
[1764814938115,0.0106576,93822.0,93810.0,0.17500823]
[1764814938710,0.0106582,93817.0,93809.0,0.0001072]
[1764814940411,0.08202,93823.0,93809.0,0.0001072]
[1764814940610,8.06e-05,93825.0,93810.0,0.17500823]
[1764814940818,0.0106574,93824.0,93810.0,0.18566713]
[1764814941906,0.0106574,93824.0,93815.0,0.0106583]
[1764814942105,8.06e-05,93825.0,93815.0,0.0106583]
[1764814944304,0.17500823,93870.0,93825.0,0.03798]
[1764814944505,0.0106556,93840.0,93827.0,0.0106569]
[1764814945311,0.17500823,93860.0,93827.0,0.0106569]
[1764814945312,0.0106558,93838.0,93827.0,0.0106569]
[1764814945811,0.0106558,93838.0,93828.0,0.17500823]
[1764814946414,0.31784,93825.0,93824.0,0.00015988]
[1764814946810,0.25451,93825.0,93824.0,0.00015988]
[1764814947117,7.594e-05,93839.0,93825.0,0.07596]
[1764814947313,7.594e-05,93839.0,93833.0,0.0106563]
[1764814947516,7.594e-05,93839.0,93838.0,0.27374]
[1764814947713,0.06333,93870.0,93842.0,0.27374]
[1764814947714,0.0106538,93855.0,93842.0,0.27374]
[1764814947908,0.0106538,93855.0,93846.0,0.17500823]
[1764814948110,0.0106546,93848.0,93846.0,0.17500823]
[1764814948308,0.06333,93870.0,93842.0,0.0106552]
[1764814948309,0.0106542,93852.0,93842.0,0.0106552]
[1764814948517,0.06333,93870.0,93825.0,0.07596]
[1764814948518,0.07267,93856.0,93833.0,0.0106562]
[1764814948715,0.07267,93856.0,93830.0,0.17500823]
[1764814948716,0.25451,93836.0,93835.0,0.00015988]
[1764814949218,0.00015988,93854.0,93839.0,0.0106556]
[1764814949407,0.010655,93846.0,93840.0,0.17500823]
[1764814949804,0.010655,93846.0,93841.0,0.0106554]
[1764814950219,0.010655,93846.0,93845.0,0.14138]
[1764814951108,0.0106554,93841.0,93836.0,0.0106559]
[1764814951307,0.00015988,93854.0,93835.0,0.00015988]
[1764814951308,0.25451,93836.0,93835.0,0.00015988]
[1764814952217,0.25451,93836.0,93835.0,8.398e-05]
[1764814952419,0.0106581,93818.0,93810.0,0.0106588]
[1764814952609,0.25451,93816.0,93815.0,0.0106583]
[1764814953222,0.00011409,93817.0,93815.0,0.0106583]
[1764814953223,0.00011409,93817.0,93816.0,0.27374]
[1764814953713,0.00015988,93826.0,93816.0,0.27374]
[1764814953919,0.00015988,93826.0,93825.0,0.25516]
[1764814954122,0.00015988,93826.0,93825.0,0.32809]
[1764814954514,0.00015988,93826.0,93825.0,0.3387472]
[1764814954914,0.00024182,93826.0,93825.0,0.3387472]
[1764814955219,0.0106546,93849.0,93848.0,0.1315]
[1764814955417,0.0106546,93849.0,93848.0,0.25516]
[1764814955807,0.010654,93854.0,93852.0,0.0106541]
[1764814956009,0.0106545,93850.0,93846.0,0.0106547]
[1764814956312,0.25777,93845.0,93844.0,0.00015988]
[1764814957322,0.13237,93853.0,93852.0,0.1421541]
[1764814957716,0.010654,93854.0,93853.0,0.1315]
[1764814958716,0.25777,93845.0,93844.0,0.00015988]
[1764814959528,0.13237,93854.0,93853.0,0.010654]
[1764814959725,0.16237,93854.0,93853.0,0.010654]
[1764814960320,0.00191512,93854.0,93853.0,0.265464]
[1764814960519,0.00015988,93862.0,93861.0,0.2654631]
[1764814960718,0.03015988,93862.0,93861.0,0.2654631]
[1764814961920,0.03015988,93862.0,93853.0,0.07441078]
[1764814961921,0.27448988,93862.0,93853.0,0.07441078]
[1764814962128,0.0106534,93859.0,93856.0,0.06756547]
[1764814962323,0.24433,93857.0,93856.0,0.0106537]
[1764814962516,0.27433,93857.0,93856.0,0.0106537]
[1764814964813,0.27433,93857.0,93856.0,0.2654637]
[1764814965015,0.03,93857.0,93856.0,0.2654637]
[1764814966119,0.03,93857.0,93856.0,0.3409437]
[1764814967530,0.03,93857.0,93856.0,0.2654637]
[1764814967531,0.27433,93857.0,93856.0,0.2654637]
[1764814967828,0.27433,93857.0,93856.0,0.0106537]
[1764814968025,0.12223,93853.0,93852.0,0.0106541]
[1764814968228,0.27433,93853.0,93852.0,0.0106541]
[1764814968526,0.27433,93853.0,93848.0,0.0106546]
[1764814968527,0.24433,93849.0,93848.0,0.0106546]
[1764814968729,0.27433,93849.0,93848.0,0.0106546]
[1764814969228,0.27433,93849.0,93848.0,0.1414246]
[1764814969536,0.27433,93849.0,93848.0,0.19833637]
[1764814970329,0.27433,93849.0,93848.0,0.1414246]
[1764814970529,0.27433,93849.0,93848.0,0.19834923]
[1764814971031,0.27433,93849.0,93844.0,0.00015988]
[1764814971323,0.24433,93845.0,93844.0,0.00015988]
[1764814971630,0.27433,93845.0,93844.0,0.00015988]
[1764814975927,0.27433,93845.0,93838.0,0.0569407]
[1764814976225,0.2549856,93839.0,93838.0,0.0569407]
[1764814976534,0.2849856,93839.0,93838.0,0.0569407]
[1764814976928,0.2549861,93835.0,93834.0,0.0106562]
[1764814977133,0.2849861,93835.0,93834.0,0.0106562]
[1764814979235,0.0106566,93831.0,93830.0,0.0106566]
[1764814979434,0.24433,93820.0,93819.0,0.09435833]
[1764814979626,0.24433,93809.0,93806.0,0.00026651]
[1764814979828,0.03,93809.0,93808.0,0.25481]
[1764814980534,0.03,93809.0,93808.0,0.27228377]
[1764814980832,0.27433,93809.0,93808.0,0.01747377]
[1764814981033,0.24433,93807.0,93806.0,0.00026651]
[1764814981227,0.27433,93807.0,93806.0,0.00026651]
[1764814981422,0.2549901,93800.0,93799.0,0.0001072]
[1764814981732,0.2849901,93800.0,93799.0,0.0001072]
[1764814981938,0.2849901,93800.0,93799.0,0.0177084]
[1764814982238,0.2849901,93800.0,93799.0,0.0001072]
[1764814982627,0.24433,93783.0,93782.0,0.13077]
[1764814982939,0.27433,93783.0,93782.0,0.33029]
[1764814983327,0.27433,93783.0,93782.0,0.34753853]
[1764814984223,0.27433,93783.0,93782.0,0.27205853]
[1764814984429,0.27433,93783.0,93782.0,0.01724853]
[1764814984632,0.27433,93783.0,93780.0,8.31e-05]
[1764814984633,0.25441,93781.0,93780.0,8.31e-05]
[1764814984940,0.2650759,93749.0,93748.0,0.24167]
[1764814985133,0.2950759,93749.0,93748.0,0.24167]
[1764814985736,0.29519513,93749.0,93748.0,0.24167]
[1764814985932,0.15064923,93749.0,93748.0,0.24167]
[1764814986640,0.28452923,93749.0,93748.0,0.24167]
[1764814987033,0.28452923,93749.0,93743.0,0.0925399]
[1764814987240,0.25441,93744.0,93743.0,0.0170599]
[1764814987438,0.0106666,93743.0,93736.0,0.0106672]
[1764814987740,0.03,93743.0,93742.0,0.24167]
[1764814988136,0.00011923,93749.0,93748.0,0.24167]
[1764814988334,0.05,93759.0,93757.0,0.252335]
[1764814988539,0.03015997,93758.0,93757.0,0.252335]
[1764814988738,0.04082477,93758.0,93757.0,0.24167]
[1764814988936,0.0106663,93746.0,93743.0,0.07325]
[1764814989130,0.2650767,93742.0,93741.0,0.11922]
[1764814989331,0.03,93742.0,93741.0,0.24167]
[1764814989633,0.05,93752.0,93751.0,0.24167]
[1764814989832,0.00015997,93758.0,93757.0,0.252335]
[1764814990036,0.03015997,93758.0,93757.0,0.252335]
[1764814990433,0.03015997,93758.0,93757.0,0.24167]
[1764814990635,0.03015997,93758.0,93757.0,0.252335]
[1764814991542,0.12053,93753.0,93747.0,0.010666]
[1764814991742,0.15053,93753.0,93747.0,0.010666]
[1764814991944,0.1611954,93753.0,93752.0,0.11922]
[1764814992137,0.1611954,93753.0,93746.0,0.11922]
[1764814992138,0.0106661,93747.0,93746.0,0.11922]
[1764814992337,0.0406661,93747.0,93746.0,0.11922]
[1764814992532,0.03,93747.0,93746.0,0.2523362]
[1764814996156,0.03,93747.0,93736.0,0.02807252]
[1764814996157,0.25441,93737.0,93736.0,0.01740522]
[1764814996444,0.0106674,93736.0,93727.0,0.0106683]
[1764814996638,0.0406674,93736.0,93727.0,0.0106683]
[1764814997050,0.0406674,93736.0,93730.0,0.010668]
[1764814997450,0.0106678,93733.0,93732.0,0.11922]
[1764814997651,0.1611978,93733.0,93732.0,0.11922]
[1764814997856,0.2950778,93733.0,93732.0,0.11922]
[1764814998150,0.2950778,93733.0,93732.0,0.24167]
[1764814999749,0.2650783,93728.0,93727.0,0.01776072]
[1764814999948,0.2950783,93728.0,93726.0,0.00026674]
[1764815000449,0.03,93728.0,93727.0,0.2523384]
[1764815000752,0.00015997,93737.0,93736.0,0.2523374]
[1764815001053,0.03015997,93737.0,93736.0,0.2523374]
[1764815004054,4.57e-06,93737.0,93736.0,0.2523374]
[1764815004356,0.05,93747.0,93746.0,0.2523362]
[1764815004554,0.05,93757.0,93756.0,0.0106651]
[1764815004852,0.03,93757.0,93756.0,0.3255851]
[1764815006951,0.295075,93757.0,93756.0,0.11922]
[1764815008754,0.295075,93757.0,93756.0,0.1298851]
[1764815009145,0.28441,93757.0,93756.0,0.1298851]
[1764815010142,0.28441,93757.0,93756.0,0.2523351]
[1764815011850,0.28441,93757.0,93756.0,0.3255851]
[1764815011851,0.03,93757.0,93756.0,0.3255851]
[1764815012561,0.00015997,93766.0,93765.0,0.2523341]
[1764815012758,0.03015997,93766.0,93765.0,0.2523341]
[1764815013458,0.17053,93776.0,93775.0,0.2523329]
[1764815013647,0.15053,93776.0,93775.0,0.2523329]
[1764815013846,0.03,93776.0,93775.0,0.2523329]
[1764815015058,0.00015997,93785.0,93775.0,0.2523329]
[1764815015059,0.00015997,93785.0,93784.0,0.2672519]
[1764815015258,0.03015997,93785.0,93784.0,0.35265662]
[1764815015457,0.03015997,93785.0,93784.0,0.2672519]
[1764815018856,0.03015997,93785.0,93784.0,0.35403825]
[1764815020148,0.15258997,93785.0,93784.0,0.35403825]
[1764815020464,0.03015997,93785.0,93784.0,0.35403825]
[1764815028958,0.03015997,93785.0,93784.0,0.85475825]
[1764815029670,0.24967,93817.0,93816.0,0.0106582]
[1764815029863,0.24967,93813.0,93812.0,0.13046]
[1764815030053,0.27967,93813.0,93812.0,0.13046]
[1764815031165,0.67967,93813.0,93810.0,0.0106589]
[1764815031365,0.67967,93813.0,93803.0,0.00015988]
[1764815031366,0.2603296,93804.0,93803.0,0.00015988]
[1764815031552,0.2903296,93804.0,93803.0,0.00015988]
[1764815031954,0.03,93804.0,93803.0,0.26987105]
[1764815033365,0.27967,93804.0,93803.0,0.26987105]
[1764815035768,0.27967,93804.0,93803.0,0.01770105]
[1764815036161,0.27967,93804.0,93803.0,0.02836075]
[1764815036567,0.05,93814.0,93803.0,0.28053075]
[1764815036865,0.24967,93853.0,93848.0,0.0106545]
[1764815037071,0.24967,93851.0,93834.0,0.07584725]
[1764815037268,0.24967,93845.0,93844.0,0.010655]
[1764815037466,0.27967,93845.0,93844.0,0.010655]
[1764815037668,0.15796,93845.0,93844.0,0.262825]
[1764815037866,0.27967,93845.0,93844.0,0.262825]
[1764815038068,0.27967,93845.0,93844.0,0.010655]
[1764815038871,0.27967,93845.0,93844.0,0.262825]
[1764815040375,0.27967,93845.0,93844.0,0.010655]
[1764815041075,0.27967,93845.0,93844.0,0.262825]
[1764815044679,0.27967,93845.0,93844.0,0.010655]
[1764815045583,0.27967,93845.0,93844.0,0.267135]
[1764815048783,0.03,93845.0,93844.0,0.267135]
[1764815049372,0.2868,93845.0,93844.0,0.267135]
[1764815049589,0.2868,93845.0,93844.0,0.135965]
[1764815050491,0.2868,93845.0,93844.0,0.267135]
[1764815052599,0.2868,93845.0,93844.0,0.135965]
[1764815053101,0.2868,93845.0,93844.0,0.267135]
[1764815059107,0.0106536,93857.0,93844.0,0.267135]
[1764815059108,0.2568,93863.0,93862.0,0.267133]
[1764815059407,0.03,93863.0,93862.0,0.267133]
[1764815059998,0.2868,93863.0,93862.0,0.010653]
[1764815061203,0.2868,93863.0,93862.0,0.135963]
[1764815061895,0.2868,93863.0,93862.0,0.010653]
[1764815062094,0.2868,93863.0,93853.0,0.17568424]
[1764815062095,0.2568,93854.0,93853.0,0.18633834]
[1764815062296,0.03,93854.0,93853.0,0.2671341]
[1764815063002,0.05,93864.0,93863.0,0.2671329]
[1764815063209,0.03,93864.0,93863.0,0.2671329]
[1764815063706,0.05,93874.0,93871.0,0.267132]
[1764815063905,0.03015988,93872.0,93871.0,0.267132]
[1764815066104,0.28695988,93872.0,93871.0,0.09649727]
[1764815067701,0.28695988,93872.0,93871.0,0.22180727]
[1764815067898,0.28695988,93872.0,93871.0,0.267132]
[1764815068507,0.15615988,93872.0,93871.0,0.267132]
[1764815069008,0.15615988,93872.0,93871.0,0.35171628]
[1764815069708,0.03015988,93872.0,93871.0,0.35171628]
[1764815070109,0.05,93882.0,93881.0,0.2671309]
[1764815070297,0.3068,93892.0,93891.0,0.2671297]
[1764815070498,0.2868,93892.0,93891.0,0.2671297]
[1764815071714,0.2868,93892.0,93891.0,0.28519571]
[1764815071900,0.156,93892.0,93891.0,0.28519571]
[1764815072509,0.03,93892.0,93891.0,0.28519571]
[1764815080824,0.03,93892.0,93891.0,0.78483571]
[1764815081616,0.000106,93901.0,93900.0,0.3296487]
[1764815081817,0.030106,93901.0,93900.0,0.3296487]
[1764815082720,0.285206,93901.0,93900.0,0.3296487]
[1764815083622,0.285206,93901.0,93900.0,0.7525987]
[1764815084024,0.285206,93901.0,93900.0,0.83805976]
[1764815084725,0.285206,93901.0,93900.0,0.33841976]
[1764815085022,0.2551,93898.0,93897.0,0.010649]
[1764815085229,0.2851,93898.0,93897.0,0.010649]
[1764815085524,0.2851,93898.0,93897.0,0.133369]
[1764815085710,0.2851,93898.0,93897.0,0.252959]
[1764815089116,0.2851,93898.0,93897.0,0.329649]
[1764815091526,0.03,93898.0,93897.0,0.329649]
[1764815092426,0.03,93898.0,93897.0,0.40554287]
[1764815093531,0.03,93898.0,93897.0,0.329649]
[1764815095427,0.05,93908.0,93907.0,0.24231]
[1764815095635,0.03,93908.0,93907.0,0.74183]
[1764815095823,0.03,93908.0,93907.0,0.7524779]
[1764815096334,0.03,93908.0,93907.0,0.7374779]
[1764815097924,0.05,93918.0,93917.0,0.2529568]
[1764815098126,0.07163,93942.0,93917.0,0.2529568]
[1764815098127,0.3051,93928.0,93927.0,0.2529557]
[1764815098319,0.2851,93928.0,93927.0,0.2529557]
[1764815098833,0.2851,93928.0,93927.0,0.1333657]
[1764815099232,0.2851,93928.0,93924.0,0.010646]
[1764815099233,0.2551,93925.0,93924.0,0.010646]
[1764815099428,0.2851,93925.0,93924.0,0.010646]
[1764815101325,0.2851,93925.0,93921.0,0.08645429]
[1764815101528,0.2551,93921.0,93920.0,0.0106464]
[1764815101834,0.2551,93921.0,93918.0,0.07580799]
[1764815101835,0.2551,93919.0,93918.0,0.07580799]
[1764815102030,0.2551,93918.0,93917.0,0.0106468]
[1764815102236,0.2851,93918.0,93917.0,0.0106468]
[1764815103434,0.24768,93913.0,93911.0,0.07580799]
[1764815103634,0.24768,93911.0,93910.0,0.08645559]
[1764815103825,0.24768,93909.0,93908.0,0.00015978]
[1764815104021,0.27768,93909.0,93908.0,0.00015978]
[1764815108832,0.2583287,93900.0,93899.0,0.07580799]
[1764815109036,0.24768,93892.0,93891.0,0.01806601]
[1764815109237,0.24768,93885.0,93884.0,0.0106505]
[1764815109537,0.28768,93885.0,93884.0,0.0106505]
[1764815111531,0.28768,93885.0,93884.0,0.02868419]
[1764815112831,0.28768,93885.0,93884.0,0.01803369]
[1764815113032,0.24768,93881.0,93880.0,0.25573437]
[1764815113232,0.27768,93881.0,93880.0,0.010651]
[1764815113437,0.27768,93881.0,93880.0,0.140381]
[1764815114239,0.05,93891.0,93890.0,0.0106499]
[1764815114442,0.00015948,93894.0,93893.0,0.2628295]
[1764815114640,0.03015948,93894.0,93893.0,0.33861907]
[1764815114842,0.27783948,93894.0,93893.0,0.7621895]
[1764815115242,0.27783948,93894.0,93893.0,0.2628295]
[1764815117443,0.27783948,93894.0,93893.0,0.0106495]
[1764815117645,0.27783948,93894.0,93893.0,0.1403795]
[1764815118244,0.27783948,93894.0,93893.0,0.2628295]
[1764815118441,0.27783948,93894.0,93893.0,0.0106495]
[1764815118645,0.24768,93891.0,93890.0,0.0106498]
[1764815118949,0.27768,93891.0,93890.0,0.0106498]
[1764815119151,0.27768,93891.0,93890.0,0.1403798]
[1764815119454,0.27768,93891.0,93890.0,0.2628298]
[1764815122942,0.03,93891.0,93890.0,0.2628298]
[1764815123855,0.15152,93891.0,93890.0,0.2628298]
[1764815124047,0.27768,93891.0,93890.0,0.2628298]
[1764815124843,0.27768,93891.0,93890.0,0.0106498]
[1764815125045,0.27768,93891.0,93882.0,0.10521579]
[1764815125046,0.24768,93883.0,93882.0,0.10521589]
[1764815125353,0.24768,93881.0,93880.0,0.0183605]
[1764815125560,0.23686,93880.0,93879.0,0.08644664]
[1764815125856,0.26686,93880.0,93879.0,0.08644664]
[1764815126847,0.26686,93880.0,93879.0,0.21175993]
[1764815127057,0.26686,93880.0,93879.0,0.13596429]
[1764815127255,0.26686,93880.0,93879.0,0.02690429]
[1764815129362,0.26686,93880.0,93879.0,0.10269993]
[1764815130162,0.31728,93880.0,93879.0,0.10269993]
[1764815130762,0.327931,93880.0,93879.0,0.01625329]
[1764815130951,0.22998,93876.0,93875.0,0.08660693]
[1764815131153,0.25998,93876.0,93875.0,0.23809129]
[1764815131661,0.25998,93876.0,93875.0,0.25508024]
[1764815134754,0.25998,93876.0,93875.0,0.02780024]
[1764815135456,0.25998,93876.0,93875.0,0.25110024]
[1764815135457,0.03,93876.0,93875.0,0.25110024]
[1764815137159,0.14488,93876.0,93875.0,0.25110024]
[1764815137357,0.25202,93876.0,93875.0,0.02780024]
[1764815138555,0.25202,93876.0,93875.0,0.25110024]
[1764815138864,0.14488,93876.0,93875.0,0.25110024]
[1764815139065,0.03,93876.0,93875.0,0.25110024]
[1764815140265,0.14488,93876.0,93875.0,0.25110024]
[1764815141058,0.25202,93876.0,93875.0,0.25110024]
[1764815143752,0.25202,93876.0,93875.0,0.01714864]
[1764815144059,0.03,93876.0,93875.0,0.23118663]
[1764815146958,0.03,93876.0,93875.0,0.32575172]
[1764815147360,0.03,93876.0,93875.0,0.23118663]
[1764815148262,0.23711,93876.0,93875.0,0.32605059]
[1764815148468,0.23711,93876.0,93875.0,0.23118663]
[1764815150671,0.03,93876.0,93875.0,0.23118663]
[1764815150885,0.05,93886.0,93885.0,0.2249904]
[1764815151170,0.00015948,93894.0,93893.0,0.2249895]
[1764815151476,0.23726948,93894.0,93893.0,0.2249895]
[1764815151666,0.23726948,93894.0,93893.0,0.1212495]
[1764815151973,0.23726948,93894.0,93893.0,0.0106495]
[1764815152273,0.23726948,93894.0,93893.0,0.1212495]
[1764815154368,0.23726948,93894.0,93893.0,0.19719606]
[1764815155075,0.03015948,93894.0,93893.0,0.2249895]
[1764815159476,0.03015948,93894.0,93893.0,0.7241095]
[1764815160576,0.23726948,93894.0,93893.0,0.2249895]
[1764815162472,0.03015948,93894.0,93893.0,0.2249895]
[1764815165777,0.05,93904.0,93903.0,0.0106484]
[1764815166080,0.21473,93921.0,93920.0,0.2185864]
[1764815166284,0.24473,93921.0,93920.0,0.2185864]
[1764815166584,0.21473,93912.0,93911.0,0.47080052]
[1764815166780,0.24473,93912.0,93911.0,0.28372172]
[1764815167079,0.24473,93912.0,93911.0,0.20794]
[1764815167273,0.24473,93912.0,93910.0,0.0106475]
[1764815167575,0.03,93912.0,93904.0,0.07578172]
[1764815167783,0.21473,93905.0,93904.0,0.0106483]
[1764815167972,0.24473,93905.0,93904.0,0.0106483]
[1764815168278,0.24473,93905.0,93904.0,0.08637889]
[1764815168674,0.24473,93905.0,93904.0,0.0106483]
[1764815168875,0.24473,93905.0,93904.0,0.08638089]
[1764815169073,0.24473,93905.0,93904.0,0.0106483]
[1764815169266,0.21473,93903.0,93902.0,0.08463096]
[1764815169465,0.24473,93903.0,93902.0,0.08463096]
[1764815169680,0.24473,93903.0,93902.0,0.00015978]
[1764815171482,0.24473,93903.0,93900.0,0.0106487]
[1764815171483,0.2553784,93903.0,93900.0,0.0106487]
[1764815171678,0.21473,93896.0,93895.0,0.0106493]
[1764815171878,0.24473,93896.0,93895.0,0.0106493]
[1764815173077,0.24473,93896.0,93895.0,0.2185893]
[1764815174784,0.03,93896.0,93895.0,0.2185893]
[1764815176689,0.00015978,93905.0,93904.0,0.2185883]
[1764815176991,0.03015978,93905.0,93904.0,0.2185883]
[1764815177386,0.03015978,93905.0,93904.0,0.31328631]
[1764815177592,0.03015978,93905.0,93904.0,0.31329407]
[1764815177593,0.24488978,93905.0,93904.0,0.31329407]
[1764815177793,0.24488978,93905.0,93904.0,0.2185883]
[1764815177992,0.24488978,93905.0,93904.0,0.31329407]
[1764815178384,0.24488978,93905.0,93904.0,0.2185883]
[1764815178785,0.21473,93901.0,93900.0,0.10535437]
[1764815179093,0.21473,93887.0,93879.0,0.07582529]
[1764815179391,0.24473,93887.0,93878.0,0.07582529]
[1764815179598,0.24473,93887.0,93877.0,0.07582529]
[1764815180096,0.24473,93887.0,93875.0,0.11256791]
[1764815180097,0.24473,93887.0,93884.0,0.0106505]
[1764815180487,0.24473,93887.0,93880.0,0.0106509]
[1764815182190,0.24473,93887.0,93875.0,0.01646667]
[1764815182394,0.21473,93876.0,93868.0,0.07582529]
[1764815182591,0.24473,93876.0,93868.0,0.07582529]
[1764815182792,0.10343,93869.0,93868.0,0.29441769]
[1764815182997,0.13343,93869.0,93868.0,0.29441769]
[1764815183296,0.13343,93869.0,93868.0,0.23593329]
[1764815185597,0.24473,93869.0,93868.0,0.23593329]
[1764815186390,0.24473,93869.0,93868.0,0.31974501]
[1764815188102,0.2253765,93920.0,93919.0,0.10175]
[1764815188414,0.03,93920.0,93919.0,0.20794]
[1764815188699,0.03,93920.0,93919.0,0.2185866]
[1764815190196,0.00963459,93920.0,93919.0,0.2185866]
[1764815190593,0.00963459,93920.0,93919.0,0.29426561]
[1764815191290,0.00963459,93920.0,93919.0,0.2185866]
[1764815195501,0.00015978,93929.0,93925.0,0.2326959]
[1764815195805,0.03026617,93926.0,93925.0,0.2326959]
[1764815196703,0.23874617,93926.0,93925.0,0.1211659]
[1764815196896,0.20848,93922.0,93921.0,0.1211663]
[1764815197092,0.20848,93913.0,93912.0,0.1211673]
[1764815197302,0.23848,93913.0,93912.0,0.1211673]
[1764815197603,0.20848,93911.0,93910.0,0.00015978]
[1764815197808,0.20848,93897.0,93896.0,0.0106491]
[1764815198008,0.23848,93897.0,93896.0,0.0106491]
[1764815199696,0.23848,93897.0,93890.0,0.06214]
[1764815199697,0.10458,93893.0,93892.0,0.0106496]
[1764815199903,0.24227,93893.0,93892.0,0.0106496]
[1764815200409,0.13769,93893.0,93892.0,0.2159796]
[1764815201008,0.24227,93893.0,93892.0,0.2159796]
[1764815204800,0.05,93903.0,93902.0,0.2159785]
[1764815205002,0.00015978,93906.0,93905.0,0.20533]
[1764815205199,0.03015978,93906.0,93905.0,0.20533]
[1764815205802,0.0106445,93938.0,93925.0,0.20533]
[1764815206003,0.03026617,93926.0,93925.0,0.20533]
[1764815206510,0.03026617,93926.0,93925.0,0.2159759]
[1764815207409,0.13795617,93926.0,93925.0,0.2159759]
[1764815208007,0.21227,93922.0,93921.0,0.0106462]
[1764815208212,0.24227,93922.0,93921.0,0.0106462]
[1764815208414,0.24227,93922.0,93921.0,0.2159762]
[1764815209104,0.21227,93922.0,93921.0,0.2159762]
[1764815209305,0.21227,93922.0,93921.0,0.1134762]
[1764815209601,0.21227,93918.0,93917.0,0.2159767]
[1764815211001,0.00026617,93926.0,93917.0,0.2159767]
[1764815211002,0.10795617,93926.0,93925.0,0.2159759]
[1764815211205,0.00026617,93926.0,93925.0,0.2159759]
[1764815211415,0.00026617,93926.0,93925.0,0.27253916]
[1764815212111,0.00026617,93926.0,93925.0,0.2159759]
[1764815213517,0.21253617,93926.0,93925.0,0.2159759]
[1764815214114,0.00026617,93926.0,93925.0,0.2159759]
[1764815214917,0.10795617,93926.0,93925.0,0.2159759]
[1764815216212,0.00026617,93926.0,93925.0,0.2159759]
[1764815219920,0.10795617,93926.0,93925.0,0.2159759]
[1764815220716,0.00026617,93926.0,93919.0,0.20533]
[1764815220913,0.00026617,93926.0,93925.0,0.0106459]
[1764815221213,0.21253617,93926.0,93925.0,0.0106459]
[1764815221817,0.00026617,93926.0,93925.0,0.2159759]
[1764815226123,0.20574617,93926.0,93925.0,0.2159759]
[1764815230125,0.20574617,93926.0,93925.0,0.0106459]
[1764815232323,0.23574617,93926.0,93925.0,0.0106459]
[1764815234420,0.23574617,93926.0,93925.0,0.08653219]
[1764815235328,0.23574617,93926.0,93925.0,0.0106459]
[1764815239432,0.23574617,93926.0,93925.0,0.1140059]
[1764815239631,0.23574617,93926.0,93925.0,0.2145759]
[1764815244633,0.23574617,93926.0,93925.0,0.1140059]
[1764815245133,0.23574617,93926.0,93925.0,0.0106459]
[1764815245324,0.23574617,93926.0,93919.0,0.09464048]
[1764815245325,0.2161264,93922.0,93921.0,0.1140063]